[Event "Open Nuevo Centro. Jornada 2"]
[Site "Chess.com"]
[Date "2020.06.26"]
[Round "5"]
[White "Aymerich Rosell, Pablo"]
[Black "Gracia Calvo, Andrés"]
[Result "1-0"]
[WhiteElo "1985"]
[BlackElo "1812"]
[TimeControl "180+2"]
[EndTime "11:25:32 PDT"]
[Termination "Victoria de jasikevic por jaque mate"]

1. e4 {[%clk 0:03:01.9]} 1... d5 {[%clk 0:03:00.4]} 2. exd5 {[%clk 0:03:01.9]}
2... Qxd5 {[%clk 0:03:01.2]} 3. Nc3 {[%clk 0:03:01.8]} 3... Qd6 {[%clk
0:03:01.7]} 4. d4 {[%clk 0:03:02.4]} 4... Nf6 {[%clk 0:03:02.4]} 5. Nf3 {[%clk
0:03:03.4]} 5... Bg4 {[%clk 0:03:03.6]} 6. Bd3 {[%clk 0:02:59.3]} 6... e6 {[%clk
0:03:04.3]} 7. Ne4 {[%clk 0:02:58.4]} 7... Nxe4 {[%clk 0:03:03.7]} 8. Bxe4
{[%clk 0:03:00.3]} 8... c6 {[%clk 0:03:04]} 9. c3 {[%clk 0:02:59.1]} 9... Be7
{[%clk 0:03:01.1]} 10. h3 {[%clk 0:02:56.2]} 10... Bh5 {[%clk 0:02:58.8]} 11.
Qc2 {[%clk 0:02:52.7]} 11... Nd7 {[%clk 0:02:53.4]} 12. Be3 {[%clk 0:02:40.6]}
12... Nf6 {[%clk 0:02:51.8]} 13. Bd3 {[%clk 0:02:22.2]} 13... Bxf3 {[%clk
0:02:44.5]} 14. gxf3 {[%clk 0:02:22.8]} 14... O-O-O {[%clk 0:02:15.1]} 15. Qa4
{[%clk 0:02:13.6]} 15... Kb8 {[%clk 0:02:13.1]} 16. O-O-O {[%clk 0:02:12.1]}
16... Nd5 {[%clk 0:02:06.2]} 17. c4 {[%clk 0:02:07.9]} 17... Nb6 {[%clk
0:01:48.2]} 18. Qb3 {[%clk 0:01:59.2]} 18... Qb4 {[%clk 0:01:43.7]} 19. Qc2
{[%clk 0:01:30.8]} 19... Bf6 {[%clk 0:01:32.6]} 20. c5 {[%clk 0:01:28]} 20...
Nd5 {[%clk 0:01:10.3]} 21. a3 {[%clk 0:01:22.2]} 21... Qa5 {[%clk 0:01:03.1]}
22. Kb1 {[%clk 0:00:59.8]} 22... e5 {[%clk 0:00:56.9]} 23. Bd2 {[%clk
0:00:50.1]} 23... Qc7 {[%clk 0:00:56.1]} 24. dxe5 {[%clk 0:00:45.2]} 24... Qxe5
{[%clk 0:00:45.9]} 25. Qc1 {[%clk 0:00:46.1]} 25... Rhe8 {[%clk 0:00:41.6]} 26.
Be4 {[%clk 0:00:44.8]} 26... Qc7 {[%clk 0:00:36.7]} 27. Qc4 {[%clk 0:00:35.9]}
27... Re7 {[%clk 0:00:34.7]} 28. Bc1 {[%clk 0:00:30]} 28... g6 {[%clk
0:00:31.6]} 29. Rhe1 {[%clk 0:00:28]} 29... Rde8 {[%clk 0:00:28]} 30. Rh1 {[%clk
0:00:20.7]} 30... Nf4 {[%clk 0:00:26.8]} 31. Bxc6 {[%clk 0:00:16.3]} 31... bxc6
{[%clk 0:00:21.7]} 32. Bxf4 {[%clk 0:00:16.9]} 32... Be5 {[%clk 0:00:21.2]} 33.
Bxe5 {[%clk 0:00:17.4]} 33... Qxe5 {[%clk 0:00:21.5]} 34. Rd3 {[%clk 0:00:16.9]}
34... Qf5 {[%clk 0:00:21]} 35. Ka2 {[%clk 0:00:16.4]} 35... Ka8 {[%clk
0:00:21.1]} 36. Rb3 {[%clk 0:00:16.8]} 36... Re2 {[%clk 0:00:14.8]} 37. Qa6
{[%clk 0:00:16.3]} 37... Qd7 {[%clk 0:00:11.3]} 38. Rd1 {[%clk 0:00:16.8]} 38...
Qc7 {[%clk 0:00:11.4]} 39. Rd6 {[%clk 0:00:14.7]} 39... Rc8 {[%clk 0:00:11.2]}
40. Rb6 {[%clk 0:00:11.6]} 40... Re7 {[%clk 0:00:10.7]} 41. Rdxc6 {[%clk
0:00:09.6]} 41... Qe5 {[%clk 0:00:07.3]} 42. Rxc8+ {[%clk 0:00:10]} 42... Qb8
{[%clk 0:00:06.7]} 43. Rbxb8# {[%clk 0:00:10.7]} 1

[Event "Open Nuevo Centro. Jornada 2"]
[Site "Chess.com"]
[Date "2020.06.26"]
[Round "5"]
[White "Salvador Buiza, Victor"]
[Black "Rodriguez, Mathias"]
[Result "1-0"]
[WhiteElo "1767"]
[BlackElo "1971"]
[TimeControl "180+2"]
[EndTime "11:25:36 PDT"]
[Termination "Victoria de TERROROSCURO666 por tiempo"]

1. e4 {[%clk 0:03:01.9]} 1... e5 {[%clk 0:02:58.3]} 2. Nf3 {[%clk 0:03:02.6]}
2... Nc6 {[%clk 0:02:58]} 3. Bc4 {[%clk 0:03:03.6]} 3... Bc5 {[%clk 0:02:57.9]}
4. d3 {[%clk 0:03:04.6]} 4... h6 {[%clk 0:02:52.8]} 5. O-O {[%clk 0:03:03.1]}
5... Nf6 {[%clk 0:02:53.5]} 6. Be3 {[%clk 0:03:03.3]} 6... Bb6 {[%clk 0:02:53]}
7. c3 {[%clk 0:03:03.9]} 7... O-O {[%clk 0:02:53]} 8. Nbd2 {[%clk 0:03:04.2]}
8... d6 {[%clk 0:02:47.5]} 9. Bb3 {[%clk 0:03:04.3]} 9... Bg4 {[%clk 0:02:45.8]}
10. h3 {[%clk 0:03:04.5]} 10... Bh5 {[%clk 0:02:45.7]} 11. Qc1 {[%clk
0:03:02.1]} 11... Kh7 {[%clk 0:02:36.6]} 12. Bc2 {[%clk 0:02:58.5]} 12... Nd7
{[%clk 0:02:31.7]} 13. Nh2 {[%clk 0:02:54.7]} 13... f5 {[%clk 0:02:30.3]} 14.
exf5 {[%clk 0:02:51.6]} 14... Rxf5 {[%clk 0:02:30.2]} 15. g4 {[%clk 0:02:51.5]}
15... Bxe3 {[%clk 0:02:22.7]} 16. gxf5 {[%clk 0:02:18.5]} 16... Qg5+ {[%clk
0:02:20.1]} 17. Kh1 {[%clk 0:02:13.8]} 17... Bxd2 {[%clk 0:02:19.7]} 18. Qb1
{[%clk 0:02:04.6]} 18... Qh4 {[%clk 0:01:52.3]} 19. Kg2 {[%clk 0:01:42.3]} 19...
Bf4 {[%clk 0:01:40.4]} 20. d4 {[%clk 0:01:12]} 20... Qg5+ {[%clk 0:01:27.2]} 21.
Kh1 {[%clk 0:01:04]} 21... Bxh2 {[%clk 0:01:20.5]} 22. Kxh2 {[%clk 0:01:04.1]}
22... Qf4+ {[%clk 0:01:20]} 23. Kg1 {[%clk 0:00:57.8]} 23... Bf3 {[%clk
0:01:16.6]} 24. f6+ {[%clk 0:00:55.2]} 24... e4 {[%clk 0:01:16]} 25. Rd1 {[%clk
0:00:34.5]} 25... Qg5+ {[%clk 0:00:52.5]} 26. Kf1 {[%clk 0:00:35.1]} 26... Qg2+
{[%clk 0:00:52.4]} 27. Ke1 {[%clk 0:00:36.1]} 27... Qg1+ {[%clk 0:00:52.3]} 28.
Kd2 {[%clk 0:00:37.1]} 28... Qxf2+ {[%clk 0:00:52.5]} 29. Kc1 {[%clk 0:00:38]}
29... Bxd1 {[%clk 0:00:45.6]} 30. Bxe4+ {[%clk 0:00:38.2]} 30... Kg8 {[%clk
0:00:41.2]} 31. Bh7+ {[%clk 0:00:30.3]} 31... Kf8 {[%clk 0:00:28.4]} 32. fxg7+
{[%clk 0:00:30.9]} 32... Kxg7 {[%clk 0:00:14.9]} 33. Qg6+ {[%clk 0:00:31.1]}
33... Kf8 {[%clk 0:00:12.6]} 34. Qxh6+ {[%clk 0:00:24.5]} 34... Ke7 {[%clk
0:00:10.5]} 35. Kxd1 {[%clk 0:00:19.5]} 35... Qf3+ {[%clk 0:00:10.1]} 36. Kc2
{[%clk 0:00:18.8]} 36... Qe2+ {[%clk 0:00:09.2]} 37. Kb3 {[%clk 0:00:16.2]}
37... Na5+ {[%clk 0:00:09]} 38. Ka4 {[%clk 0:00:15.8]} 38... Qc4+ {[%clk
0:00:08.4]} 39. b4 {[%clk 0:00:13.9]} 39... b5+ {[%clk 0:00:07.6]} 40. Kxa5
{[%clk 0:00:12.1]} 40... Qe6 {[%clk 0:00:02.6]} 41. Qg7+ {[%clk 0:00:11.8]}
41... Qf7 {[%clk 0:00:02.5]} 42. Re1+ {[%clk 0:00:12.3]} 1

[Event "Open Nuevo Centro. Jornada 2"]
[Site "Chess.com"]
[Date "2020.06.26"]
[Round "5"]
[White "Aguado, Pablo Luis"]
[Black "Hassomal Daswani, Birjkumar"]
[Result "1-0"]
[WhiteElo "1769"]
[BlackElo "1831"]
[TimeControl "180+2"]
[EndTime "11:25:46 PDT"]
[Termination "Victoria de PLAD_2006 por abandono"]

1. d4 {[%clk 0:03:01.9]} 1... Nf6 {[%clk 0:02:55.2]} 2. c4 {[%clk 0:03:01.1]}
2... c5 {[%clk 0:02:55.6]} 3. d5 {[%clk 0:03:00.7]} 3... e5 {[%clk 0:02:56.2]}
4. Nc3 {[%clk 0:03:00.4]} 4... d6 {[%clk 0:02:56.9]} 5. e4 {[%clk 0:03:01.1]}
5... Be7 {[%clk 0:02:56.8]} 6. Nge2 {[%clk 0:02:59.4]} 6... Nbd7 {[%clk
0:02:53.9]} 7. g3 {[%clk 0:02:59.9]} 7... Nf8 {[%clk 0:02:53.3]} 8. Bg2 {[%clk
0:03:00.3]} 8... Ng6 {[%clk 0:02:52.7]} 9. O-O {[%clk 0:03:00.2]} 9... h5 {[%clk
0:02:50.2]} 10. a3 {[%clk 0:02:52.4]} 10... h4 {[%clk 0:02:50.3]} 11. b4 {[%clk
0:02:48.5]} 11... b6 {[%clk 0:02:50.5]} 12. Rb1 {[%clk 0:02:17.8]} 12... Bg4
{[%clk 0:02:45.3]} 13. Qc2 {[%clk 0:02:08]} 13... Qd7 {[%clk 0:02:34.7]} 14.
bxc5 {[%clk 0:02:06.5]} 14... bxc5 {[%clk 0:02:34.7]} 15. Bg5 {[%clk 0:01:49.4]}
15... Bh3 {[%clk 0:02:27.3]} 16. Bxf6 {[%clk 0:01:05.6]} 16... Bxf6 {[%clk
0:02:26.6]} 17. Qa4 {[%clk 0:00:42]} 17... Bxg2 {[%clk 0:02:22.1]} 18. Qxd7+
{[%clk 0:00:40.9]} 18... Kxd7 {[%clk 0:02:21.4]} 19. Kxg2 {[%clk 0:00:42.4]}
19... Rhb8 {[%clk 0:02:17]} 20. f4 {[%clk 0:00:35.1]} 20... exf4 {[%clk
0:02:10.3]} 21. gxf4 {[%clk 0:00:29.4]} 21... Rb6 {[%clk 0:02:04.2]} 22. Na4
{[%clk 0:00:11.7]} 22... Ra6 {[%clk 0:02:04.7]} 23. Nec3 {[%clk 0:00:09.5]}
23... Bxc3 {[%clk 0:02:03.4]} 24. Nxc3 {[%clk 0:00:11]} 24... Rxa3 {[%clk
0:02:01.3]} 25. Rb7+ {[%clk 0:00:12.1]} 25... Ke8 {[%clk 0:02:01.2]} 26. Nb5
{[%clk 0:00:13.3]} 26... Ra2+ {[%clk 0:01:59.7]} 27. Kf3 {[%clk 0:00:13.3]}
27... Rd8 {[%clk 0:01:47.7]} 28. Nxa7 {[%clk 0:00:14.2]} 28... Rxh2 {[%clk
0:01:44.3]} 29. Rfb1 {[%clk 0:00:14.7]} 29... Rh3+ {[%clk 0:01:40]} 30. Kf2
{[%clk 0:00:13.8]} 30... Nxf4 {[%clk 0:01:38.1]} 31. Nc6 {[%clk 0:00:14.6]}
31... Nd3+ {[%clk 0:01:32.8]} 32. Ke2 {[%clk 0:00:14.8]} 32... Nf4+ {[%clk
0:01:29.6]} 33. Kf2 {[%clk 0:00:15.5]} 33... Rc8 {[%clk 0:01:26.6]} 34. Re7+
{[%clk 0:00:15.3]} 34... Kf8 {[%clk 0:01:26.8]} 35. Rbb7 {[%clk 0:00:16.8]}
35... Rg3 {[%clk 0:01:17.3]} 36. Rxf7+ {[%clk 0:00:17.9]} 36... Kg8 {[%clk
0:01:18]} 37. Rxf4 {[%clk 0:00:19.4]} 37... Ra8 {[%clk 0:01:13.4]} 38. Rxh4
{[%clk 0:00:19.4]} 38... Rc3 {[%clk 0:01:10.6]} 39. Ne7+ {[%clk 0:00:18.9]}
39... Kf7 {[%clk 0:01:05.9]} 40. Nf5+ {[%clk 0:00:20]} 40... Kf6 {[%clk
0:01:04.2]} 41. Rb2 {[%clk 0:00:20.5]} 41... Ke5 {[%clk 0:01:03.5]} 42. Nxg7
{[%clk 0:00:19.7]} 42... Rxc4 {[%clk 0:01:02.2]} 43. Rh5+ {[%clk 0:00:20.8]}
43... Kxe4 {[%clk 0:01:01.7]} 44. Re2+ {[%clk 0:00:21.6]} 44... Kd3 {[%clk
0:00:59.1]} 45. Rh3+ {[%clk 0:00:20.9]} 45... Kd4 {[%clk 0:00:57.3]} 46. Rh5
{[%clk 0:00:21.1]} 46... Kd3 {[%clk 0:00:56.2]} 47. Ne6 {[%clk 0:00:20.7]} 47...
Kc3 {[%clk 0:00:49.7]} 48. Rh3+ {[%clk 0:00:21.6]} 48... Kb4 {[%clk 0:00:49.5]}
49. Rb2+ {[%clk 0:00:22.7]} 49... Ka4 {[%clk 0:00:49.7]} 50. Ra2+ {[%clk
0:00:23.2]} 1

[Event "Open Nuevo Centro. Jornada 2"]
[Site "Chess.com"]
[Date "2020.06.26"]
[Round "5"]
[White "Cayon Pelaez, Pablo"]
[Black "Méndez Giménez , Néstor Emmanuel"]
[Result "1-0"]
[WhiteElo "1752"]
[BlackElo "1119"]
[TimeControl "180+2"]
[EndTime "11:25:55 PDT"]
[Termination "Victoria de Ataquedefinitivo por jaque mate"]

1. e4 {[%clk 0:03:01.9]} 1... e6 {[%clk 0:03:01.9]} 2. d4 {[%clk 0:03:02.2]}
2... c5 {[%clk 0:03:00.8]} 3. c3 {[%clk 0:03:01.5]} 3... Nc6 {[%clk 0:03:00.3]}
4. Nf3 {[%clk 0:03:01.5]} 4... Qb6 {[%clk 0:02:59.6]} 5. d5 {[%clk 0:02:41.5]}
5... exd5 {[%clk 0:02:57.8]} 6. exd5 {[%clk 0:02:42.4]} 6... Nce7 {[%clk
0:02:56.2]} 7. c4 {[%clk 0:02:39.1]} 7... Nf6 {[%clk 0:02:52.1]} 8. Nc3 {[%clk
0:02:38.6]} 8... d6 {[%clk 0:02:52.7]} 9. Bd3 {[%clk 0:02:30.3]} 9... Bd7 {[%clk
0:02:46.6]} 10. O-O {[%clk 0:02:24.8]} 10... g6 {[%clk 0:02:40.8]} 11. Re1
{[%clk 0:02:03.2]} 11... O-O-O {[%clk 0:02:32.3]} 12. Ng5 {[%clk 0:01:58]} 12...
Re8 {[%clk 0:02:27.1]} 13. Nxf7 {[%clk 0:01:56.2]} 13... Rg8 {[%clk 0:02:27.1]}
14. Bf4 {[%clk 0:01:39.7]} 14... Nf5 {[%clk 0:02:20.3]} 15. Rxe8+ {[%clk
0:01:00]} 15... Bxe8 {[%clk 0:02:20.1]} 16. Ng5 {[%clk 0:00:55.8]} 16... Qxb2
{[%clk 0:02:18.7]} 17. Nce4 {[%clk 0:00:46.2]} 17... Nxe4 {[%clk 0:02:16.7]} 18.
Bxe4 {[%clk 0:00:43.8]} 18... Bg7 {[%clk 0:02:15.9]} 19. Rb1 {[%clk 0:00:43]}
19... Qxa2 {[%clk 0:02:13.8]} 20. Ne6 {[%clk 0:00:19.7]} 20... Nd4 {[%clk
0:02:03.8]} 21. Nxg7 {[%clk 0:00:14.3]} 21... Rxg7 {[%clk 0:01:58.8]} 22. Bxd6
{[%clk 0:00:15]} 22... Ba4 {[%clk 0:01:49.4]} 23. Qg4+ {[%clk 0:00:05.1]} 23...
Kd8 {[%clk 0:01:42.7]} 24. Qg5+ {[%clk 0:00:05.5]} 24... Kc8 {[%clk 0:01:37.7]}
25. Qg4+ {[%clk 0:00:06.7]} 25... Nf5 {[%clk 0:01:38.1]} 26. Bxf5+ {[%clk
0:00:07.6]} 26... gxf5 {[%clk 0:01:38.7]} 27. Qxf5+ {[%clk 0:00:08.9]} 27... Rd7
{[%clk 0:01:39]} 28. Qf8+ {[%clk 0:00:08.6]} 28... Rd8 {[%clk 0:01:39.7]} 29.
Qf5+ {[%clk 0:00:09.7]} 29... Bd7 {[%clk 0:01:40.3]} 30. Qxh7 {[%clk 0:00:09]}
30... Qxc4 {[%clk 0:01:27]} 31. Qh5 {[%clk 0:00:03.3]} 31... Qd3 {[%clk
0:01:17.4]} 32. Rd1 {[%clk 0:00:04]} 32... Qf5 {[%clk 0:01:14.1]} 33. Qxf5
{[%clk 0:00:03.7]} 33... Bxf5 {[%clk 0:01:14.7]} 34. Bg3 {[%clk 0:00:05.4]}
34... Kd7 {[%clk 0:01:13.8]} 35. d6 {[%clk 0:00:06.7]} 35... Ke6 {[%clk
0:01:13.7]} 36. f3 {[%clk 0:00:08.2]} 36... b5 {[%clk 0:01:13.4]} 37. Kf2 {[%clk
0:00:09.2]} 37... b4 {[%clk 0:01:14]} 38. Rc1 {[%clk 0:00:09.3]} 38... b3 {[%clk
0:01:12.7]} 39. Rxc5 {[%clk 0:00:04.6]} 39... b2 {[%clk 0:01:13.2]} 40. Re5+
{[%clk 0:00:05.6]} 40... Kxd6 {[%clk 0:01:13]} 41. Rxf5+ {[%clk 0:00:06.7]}
41... Ke6 {[%clk 0:01:12.7]} 42. Rb5 {[%clk 0:00:08.3]} 42... Rd2+ {[%clk
0:00:59.9]} 43. Ke3 {[%clk 0:00:09.2]} 43... Rxg2 {[%clk 0:01:00.4]} 44. Be5
{[%clk 0:00:09.7]} 44... a6 {[%clk 0:00:59.8]} 45. Rxb2 {[%clk 0:00:10]} 45...
Rxb2 {[%clk 0:00:59.6]} 46. Bxb2 {[%clk 0:00:11.6]} 46... a5 {[%clk 0:00:59.7]}
47. f4 {[%clk 0:00:12.6]} 47... Kf5 {[%clk 0:01:00]} 48. Kf3 {[%clk 0:00:13.8]}
48... a4 {[%clk 0:00:59.9]} 49. Ba3 {[%clk 0:00:15.1]} 49... Kg6 {[%clk
0:00:59.5]} 50. Kg4 {[%clk 0:00:16.5]} 50... Kf6 {[%clk 0:01:00.1]} 51. f5
{[%clk 0:00:17.7]} 51... Kg7 {[%clk 0:00:59.8]} 52. Kg5 {[%clk 0:00:19.2]} 52...
Kf7 {[%clk 0:01:00.6]} 53. f6 {[%clk 0:00:20.1]} 53... Kg8 {[%clk 0:01:00.6]}
54. Kf5 {[%clk 0:00:14.8]} 54... Kf7 {[%clk 0:01:01]} 55. h3 {[%clk 0:00:15.4]}
55... Ke8 {[%clk 0:00:59.7]} 56. Ke6 {[%clk 0:00:16.4]} 56... Kd8 {[%clk
0:00:58.5]} 57. f7 {[%clk 0:00:17.5]} 57... Kc7 {[%clk 0:00:58.9]} 58. f8=Q
{[%clk 0:00:18.5]} 58... Kb6 {[%clk 0:00:59.6]} 59. Qc5+ {[%clk 0:00:19.3]}
59... Kb7 {[%clk 0:00:59.9]} 60. Kd7 {[%clk 0:00:17.8]} 60... Ka6 {[%clk
0:01:00.2]} 61. Qb4 {[%clk 0:00:18.6]} 61... Ka7 {[%clk 0:00:59.6]} 62. Kc7
{[%clk 0:00:19.7]} 62... Ka6 {[%clk 0:00:59.9]} 63. Qb6# {[%clk 0:00:20.6]} 1

[Event "Open Nuevo Centro. Jornada 2"]
[Site "Chess.com"]
[Date "2020.06.26"]
[Round "5"]
[White "Reig Albero, Ferran"]
[Black "Gimenez Saiz, Jose Raul"]
[Result "1-0"]
[WhiteElo "1801"]
[BlackElo "1530"]
[TimeControl "180+2"]
[EndTime "11:26:16 PDT"]
[Termination "Victoria de Narref por tiempo"]

1. e4 {[%clk 0:02:57.9]} 1... d5 {[%clk 0:02:59.6]} 2. exd5 {[%clk 0:02:57.7]}
2... Nf6 {[%clk 0:03:00.4]} 3. d4 {[%clk 0:02:58.1]} 3... Bg4 {[%clk 0:03:00.9]}
4. Be2 {[%clk 0:02:54.6]} 4... Bxe2 {[%clk 0:03:01.5]} 5. Qxe2 {[%clk
0:02:55.5]} 5... Qxd5 {[%clk 0:03:02]} 6. Nf3 {[%clk 0:02:55.5]} 6... Nc6 {[%clk
0:03:02.4]} 7. c4 {[%clk 0:02:44.1]} 7... Qf5 {[%clk 0:02:56.1]} 8. d5 {[%clk
0:02:19.3]} 8... Nb4 {[%clk 0:02:52.6]} 9. Nd4 {[%clk 0:02:19.6]} 9... Qg6
{[%clk 0:02:25.8]} 10. O-O {[%clk 0:02:17]} 10... O-O-O {[%clk 0:02:07.6]} 11.
a3 {[%clk 0:02:11.2]} 11... Na6 {[%clk 0:01:58.7]} 12. Be3 {[%clk 0:02:11.7]}
12... e5 {[%clk 0:01:53.5]} 13. dxe6 {[%clk 0:02:11]} 13... Bc5 {[%clk
0:01:44.1]} 14. Rd1 {[%clk 0:01:48]} 14... fxe6 {[%clk 0:01:44.4]} 15. Nc3
{[%clk 0:01:37.9]} 15... Rhe8 {[%clk 0:01:33.1]} 16. b4 {[%clk 0:01:31.1]} 16...
Bxd4 {[%clk 0:01:32.8]} 17. Bxd4 {[%clk 0:01:31.3]} 17... Nb8 {[%clk 0:01:26.4]}
18. Be3 {[%clk 0:01:24.3]} 18... Nc6 {[%clk 0:01:24.5]} 19. b5 {[%clk
0:01:10.9]} 19... Ne5 {[%clk 0:01:24]} 20. h3 {[%clk 0:01:11.1]} 20... Ne4
{[%clk 0:00:59.3]} 21. Nxe4 {[%clk 0:00:58.3]} 21... Qxe4 {[%clk 0:01:00.3]} 22.
c5 {[%clk 0:00:57.3]} 22... Nc4 {[%clk 0:00:52.2]} 23. b6 {[%clk 0:00:52.7]}
23... axb6 {[%clk 0:00:45.6]} 24. cxb6 {[%clk 0:00:52.8]} 24... Nxb6 {[%clk
0:00:41.9]} 25. Rab1 {[%clk 0:00:37.4]} 25... Nc4 {[%clk 0:00:40]} 26. Rb4
{[%clk 0:00:14.6]} 26... Rxd1+ {[%clk 0:00:36.8]} 27. Qxd1 {[%clk 0:00:14.7]}
27... Qd5 {[%clk 0:00:33.2]} 28. Qe2 {[%clk 0:00:08.7]} 28... Nxe3 {[%clk
0:00:33.3]} 29. Qxe3 {[%clk 0:00:09.8]} 29... Qd1+ {[%clk 0:00:31.1]} 30. Kh2
{[%clk 0:00:09.9]} 30... Qd5 {[%clk 0:00:32.4]} 31. Qa7 {[%clk 0:00:10.4]} 31...
c5 {[%clk 0:00:25.6]} 32. Qa8+ {[%clk 0:00:08]} 32... Kd7 {[%clk 0:00:25.6]} 33.
Rxb7+ {[%clk 0:00:08]} 33... Kd6 {[%clk 0:00:23.7]} 34. Rb6+ {[%clk 0:00:08.4]}
34... Ke5 {[%clk 0:00:22.8]} 35. Qxe8 {[%clk 0:00:06.6]} 35... Kd4 {[%clk
0:00:21.8]} 36. Qf7 {[%clk 0:00:06.3]} 36... Ke5 {[%clk 0:00:20.6]} 37. f4+
{[%clk 0:00:04.8]} 37... Kd4 {[%clk 0:00:20.6]} 38. Qxg7+ {[%clk 0:00:04.9]}
38... Kc4 {[%clk 0:00:20.9]} 39. Qe5 {[%clk 0:00:05.6]} 39... Qd3 {[%clk
0:00:17.8]} 40. Rc6 {[%clk 0:00:05.5]} 40... Qxa3 {[%clk 0:00:15.7]} 41. Qxe6+
{[%clk 0:00:03.9]} 41... Kb4 {[%clk 0:00:12.8]} 42. Qe4+ {[%clk 0:00:03.7]}
42... Kb5 {[%clk 0:00:09.9]} 43. f5 {[%clk 0:00:04.8]} 43... Qb4 {[%clk
0:00:04]} 44. Qxb4+ {[%clk 0:00:04.3]} 44... cxb4 {[%clk 0:00:04.8]} 45. Rc8
{[%clk 0:00:05.4]} 45... b3 {[%clk 0:00:05.3]} 46. f6 {[%clk 0:00:06.6]} 46...
Kb4 {[%clk 0:00:04.4]} 47. Rb8+ {[%clk 0:00:07.8]} 47... Ka3 {[%clk 0:00:05.6]}
48. f7 {[%clk 0:00:09.4]} 48... b2 {[%clk 0:00:05.7]} 49. f8=Q+ {[%clk
0:00:10.6]} 1

[Event "Open Nuevo Centro. Jornada 2"]
[Site "Chess.com"]
[Date "2020.06.26"]
[Round "5"]
[White "Clement Gómez, José Antonio"]
[Black "Pallardo Lozoya, Jose Vicente"]
[Result "1-0"]
[WhiteElo "2486"]
[BlackElo "2272"]
[TimeControl "180+2"]
[EndTime "11:26:23 PDT"]
[Termination "Victoria de P4AD por tiempo"]

1. c4 {[%clk 0:03:01.9]} 1... e5 {[%clk 0:02:55.7]} 2. g3 {[%clk 0:03:03.8]}
2... Nc6 {[%clk 0:02:56.5]} 3. Bg2 {[%clk 0:03:05]} 3... d6 {[%clk 0:02:57.7]}
4. Nc3 {[%clk 0:03:06.2]} 4... g6 {[%clk 0:02:54.8]} 5. Rb1 {[%clk 0:03:06.4]}
5... Bg7 {[%clk 0:02:55.4]} 6. b4 {[%clk 0:03:07.8]} 6... f5 {[%clk 0:02:48.2]}
7. e3 {[%clk 0:03:08.4]} 7... Nf6 {[%clk 0:02:34.4]} 8. b5 {[%clk 0:03:08.9]}
8... Ne7 {[%clk 0:02:34.2]} 9. d4 {[%clk 0:03:08.9]} 9... O-O {[%clk 0:02:31]}
10. dxe5 {[%clk 0:03:10.8]} 10... dxe5 {[%clk 0:02:32.3]} 11. Qb3 {[%clk
0:03:07.6]} 11... e4 {[%clk 0:02:17.7]} 12. Ba3 {[%clk 0:03:06.6]} 12... Be6
{[%clk 0:02:13.9]} 13. Nge2 {[%clk 0:03:03]} 13... Bf7 {[%clk 0:01:47.8]} 14.
Rd1 {[%clk 0:02:57.1]} 14... Qe8 {[%clk 0:01:44.9]} 15. Nf4 {[%clk 0:02:47.5]}
15... c6 {[%clk 0:01:17]} 16. O-O {[%clk 0:02:45.9]} 16... Kh8 {[%clk
0:01:00.2]} 17. bxc6 {[%clk 0:02:20.9]} 17... bxc6 {[%clk 0:01:00.8]} 18. Na4
{[%clk 0:02:15.3]} 18... Rb8 {[%clk 0:00:51.7]} 19. Qc2 {[%clk 0:02:13.3]} 19...
Rg8 {[%clk 0:00:37.3]} 20. Bd6 {[%clk 0:02:03.5]} 20... Rc8 {[%clk 0:00:32.3]}
21. Nc5 {[%clk 0:02:01.9]} 21... g5 {[%clk 0:00:31.6]} 22. Nfe6 {[%clk
0:01:53.8]} 22... Bxe6 {[%clk 0:00:23.5]} 23. Nxe6 {[%clk 0:01:55.7]} 23... Ng6
{[%clk 0:00:23.4]} 24. Nxg5 {[%clk 0:01:38.5]} 24... h6 {[%clk 0:00:17.2]} 25.
Nh3 {[%clk 0:01:34.1]} 25... Qe6 {[%clk 0:00:18.2]} 26. Nf4 {[%clk 0:01:27.4]}
26... Nxf4 {[%clk 0:00:19.5]} 27. Bxf4 {[%clk 0:01:29.3]} 27... Rgd8 {[%clk
0:00:21.1]} 28. Bh3 {[%clk 0:01:19.9]} 28... Ng4 {[%clk 0:00:21.2]} 29. c5
{[%clk 0:00:55.1]} 29... Kh7 {[%clk 0:00:18.7]} 30. Rd6 {[%clk 0:00:53.6]} 30...
Rxd6 {[%clk 0:00:19.9]} 31. Bxd6 {[%clk 0:00:47.9]} 31... h5 {[%clk 0:00:20.4]}
32. Rb1 {[%clk 0:00:43.7]} 32... Rd8 {[%clk 0:00:19.3]} 33. Rb7 {[%clk
0:00:43.2]} 33... Rd7 {[%clk 0:00:20.8]} 34. Rb8 {[%clk 0:00:33.7]} 34... Be5
{[%clk 0:00:19.7]} 35. Bxe5 {[%clk 0:00:19.5]} 35... Qxe5 {[%clk 0:00:21.6]} 36.
Kg2 {[%clk 0:00:20]} 36... Qe6 {[%clk 0:00:23.5]} 37. Qb2 {[%clk 0:00:17.7]}
37... Rg7 {[%clk 0:00:17.5]} 38. Rf8 {[%clk 0:00:15.5]} 38... Nh6 {[%clk
0:00:16]} 39. Qb8 {[%clk 0:00:14]} 39... Kg6 {[%clk 0:00:15.5]} 40. Re8 {[%clk
0:00:14.1]} 40... Qc4 {[%clk 0:00:16]} 41. Qc8 {[%clk 0:00:10.9]} 41... Qd5
{[%clk 0:00:15.5]} 42. Re6+ {[%clk 0:00:10.6]} 42... Kh7 {[%clk 0:00:16.9]} 43.
Qxc6 {[%clk 0:00:10.9]} 43... Qxc6 {[%clk 0:00:14.1]} 44. Rxc6 {[%clk
0:00:12.8]} 44... Rf7 {[%clk 0:00:14.2]} 45. Rc8 {[%clk 0:00:12.7]} 45... Kg7
{[%clk 0:00:15]} 46. c6 {[%clk 0:00:13.7]} 46... Kf6 {[%clk 0:00:16.5]} 47. c7
{[%clk 0:00:14.4]} 47... Ng4 {[%clk 0:00:16.5]} 48. Bxg4 {[%clk 0:00:12.8]}
48... hxg4 {[%clk 0:00:18.4]} 49. h4 {[%clk 0:00:13.1]} 49... gxh3+ {[%clk
0:00:19.2]} 50. Kxh3 {[%clk 0:00:14]} 50... Rh7+ {[%clk 0:00:21.1]} 51. Kg2
{[%clk 0:00:15.1]} 51... Rf7 {[%clk 0:00:23]} 52. f3 {[%clk 0:00:15.5]} 52...
exf3+ {[%clk 0:00:23.3]} 53. Kxf3 {[%clk 0:00:16.6]} 53... a5 {[%clk 0:00:25]}
54. a4 {[%clk 0:00:17.2]} 54... Ke6 {[%clk 0:00:24.5]} 55. Re8+ {[%clk
0:00:17.7]} 1